Cogmind - Beta 10.2 @@@ ROGUE MODE // 2021.02.22 @ 12:08:25 Player: EgoOrb Result: Destroyed by Y-45 Defender with Heavy Assault Rifle Performance ------------- Evolutions (1) 500 Regions Visited (3) 600 Robots Destroyed (11) 55 Value Destroyed (280) 280 Prototype IDs (0) 0 Alien Tech Used (0) 0 Bonus (0) 0 TOTAL SCORE: 1435 Bonus ------- None Cogmind --------- Core Integrity 0/400 Matter 263/300 Energy 91/100 System Corruption 0% Temperature Cool (9) Movement Core (250) Ox4 Location -9/Materials Parts ------- > --- POWER (1) -------- (None) > --- PROPULSION (2) --- (None) > --- UTILITY (4) ------ Small Storage Unit Trap Extractor Trap Extractor > --- WEAPON (2) ------- High-powered Shotgun High-powered Shotgun > --- INVENTORY (6) ---- Light Ion Engine Peak State ------------ > --- POWER ------------ (None) > --- PROPULSION ------- (None) > --- UTILITY ---------- Small Storage Unit Trap Extractor Trap Extractor > --- WEAPON ----------- High-powered Shotgun High-powered Shotgun > --- INVENTORY -------- Light Ion Engine [Rating: 11] Favorites ----------- Power Light Ion Engine Engine Light Ion Engine Propulsion Aluminum Leg Leg Aluminum Leg Wheel Wheel Utility Small Storage Unit Device Trap Extractor Storage Small Storage Unit Weapon Light Assault Rifle Energy Gun Medium Laser Ballistic Gun Light Assault Rifle Special Weapon Mining Laser Build | -11 -10 -10 -9 ------- Run | Scr Mat Min Mat Slots Evolved 2 | . . . 2 Power . | . . . . Propulsion . | . . . . Utility 2 | . . . 2 Weapon . | . . . . Parts Attached 20 | 6 7 . 7 Power 4 | 1 2 . 1 Engine 4 | 1 2 . 1 Core . | . . . . Reactor . | . . . . Propulsion 4 | 2 2 . . Treads . | . . . . Leg 2 | . 2 . . Wheel 2 | 2 . . . Hover . | . . . . Flight . | . . . . Utility 3 | 1 . . 2 Device 2 | . . . 2 Storage 1 | 1 . . . Processor . | . . . . Hackware . | . . . . Protection . | . . . . Artifact . | . . . . Weapon 9 | 2 3 . 4 Energy Gun 2 | 1 1 . . Energy Cannon . | . . . . Ballistic Gun 5 | 1 2 . 2 Ballistic Cannon . | . . . . Launcher . | . . . . Special Weapon 2 | . . . 2 Impact Weapon . | . . . . Slashing Weapon . | . . . . Piercing Weapon . | . . . . Special Melee Weapon . | . . . . Unidentified Prototypes . | . . . . Parts Lost 15 | . 7 . 8 Power 4 | . 2 . 2 Propulsion 4 | . 2 . 2 Utility . | . . . . Weapon 7 | . 3 . 4 Highest Loss Streak 7 | . 7 . 7 Average Slot Usage (%) 77 | . 76 85 69 Engine 11 | . 13 14 6 Leg 17 | . 7 28 15 Wheel 4 | . 14 . . Device 6 | . . . 20 Storage 13 | . 14 14 11 Energy Gun 2 | . 7 . . Ballistic Gun 21 | . 18 28 16 Naked Turns . | . . . . Heaviest Build 13 | 12 12 9 13 Greatest Support 26 | 26 26 20 20 Greatest Overweight (x) 2 | 1 2 . 2 Average Overweight (x) . | . . . . Largest Inventory Capacity 6 | 6 6 6 6 Average Capacity 5 | 5 6 6 6 Most Carried 4 | 4 4 2 4 Average Carried 1 | 1 1 2 2 Final Capacity 6 | 6 6 6 6 Final Carried 2 | 2 2 2 1 Class Distribution -------------------- 63% | Scavenger-Mutant 36% | Mutant Dominant Class ---------------- Mutant | -10/Materials Scavenger-Mutant | -10/Mines Scavenger-Mutant | -9/Materials Resources | -11 -10 -10 -9 ----------- Run | Scr Mat Min Mat Matter Collected 365 | 232 96 . 37 Remotely . | . . . . Salvage Created 353 | . 279 . 74 Parts 23 | . 18 . 5 Haulers Intercepted . | . . . . Recyclers Shooed . | . . . . Parts Field Recycled . | . . . . Retrieved Matter . | . . . . Parts Self-Destructed . | . . . . Prevented . | . . . . Kills | -11 -10 -10 -9 ------- Run | Scr Mat Min Mat Combat Hostiles Destroyed 11 | . 8 . 3 Guns 11 | . 8 . 3 Classes Destroyed 2 | . 2 . . Swarmer 5 | . 3 . 2 Grunt 6 | . 5 . 1 Best Kill Streak 4 | . 4 . 2 Combat Bots Only 4 | . 4 . 2 Max Kills in Single Turn 1 | . 1 . 1 Gunslinging . | . . . . Exploded . | . . . . Melee . | . . . . Uniques/NPCs Destroyed . | . . . . Combat | -11 -10 -10 -9 -------- Run | Scr Mat Min Mat Damage Taken 1719 | . 739 . 980 Core 600 | . 196 . 404 Absorbed by Shields . | . . . . Core Remaining (%) 60 | 100 . 21 . Volleys Fired 45 | . 27 . 18 Largest 2 | . 2 . 2 Hottest 100 | . 70 . 100 Shots Fired 82 | . 51 . 31 Gun 81 | . 51 . 30 Cannon . | . . . . Launcher . | . . . . Special 1 | . . . 1 Kinetic 66 | . 36 . 30 Thermal 16 | . 15 . 1 Explosive . | . . . . Electromagnetic . | . . . . Robot Hit Streak 15 | . 15 . 4 Robot Miss Streak 4 | . 4 . 2 Penetration Max . | . . . . Secondary Targets 4 | . 3 . 1 Max Gunslinging Chain 1 | . 1 . 1 Shots Hit Robots 57 | . 37 . 20 Core Hits 23 | . 17 . 6 Critical Hits . | . . . . Critical Kills . | . . . . Critical Parts Destroyed . | . . . . Melee Attacks . | . . . . Impact . | . . . . Slashing . | . . . . Piercing . | . . . . Sneak Attacks . | . . . . Combat Hostiles . | . . . . Follow-up Attacks . | . . . . Damage Inflicted 505 | . 314 . 191 Guns 502 | . 313 . 189 Cannons . | . . . . Explosions . | . . . . Melee . | . . . . Ramming 3 | . 1 . 2 Kinetic 383 | . 194 . 189 Thermal 119 | . 119 . . Explosive . | . . . . Electromagnetic . | . . . . Impact . | . . . . Slashing . | . . . . Piercing . | . . . . Highest Corruption . | . . . . Average Corruption . | . . . . Corruption Purged . | . . . . Overload Shots . | . . . . Overflow Damage . | . . . . Projectiles . | . . . . Explosions . | . . . . Melee . | . . . . Knockbacks . | . . . . Impact . | . . . . Kinetic . | . . . . Secondary . | . . . . Self-Inflicted Damage 1 | . . . 1 Shots . | . . . . Rammed 2 | . 1 . 1 Targets Rammed 2 | . 1 . 1 Kicked . | . . . . Crushed . | . . . . Highest Temperature 156 | . 156 . 6 Average Temperature 64 | . 65 . 6 Received Heat Transfer 495 | . 351 . 144 Siege Activations . | . . . . Robots Corrupted . | . . . . Combat Hostiles . | . . . . Parts Fried . | . . . . Impact Corruptions . | . . . . Robots Melted . | . . . . Combat Hostiles . | . . . . Parts Melted 2 | . 2 . . Heat Transferred 334 | . 334 . . Parts Sabotaged . | . . . . Parts Stolen . | . . . . Parts Stripped . | . . . . Power Chain Reactions . | . . . . Missiles Intercepted . | . . . . Alert | -11 -10 -10 -9 ------- Run | Scr Mat Min Mat Peak Influence 145 | . 145 56 56 Initial 56 | . . 56 21 Average 45 | . 68 56 27 Maximum Alert Level . | . . . . Low Security (%) 100 | 100 100 100 100 Level 1 . | . . . . Level 2 . | . . . . Level 3 . | . . . . Level 4 . | . . . . Level 5 . | . . . . High Security . | . . . . Max Security . | . . . . Squads Dispatched 2 | . 1 . 1 Investigation . | . . . . Extermination . | . . . . Reinforcement 2 | . 1 . 1 Assault . | . . . . Garrison . | . . . . Intercept . | . . . . Construction Impeded . | . . . . Haulers Reinforced . | . . . . Stealth | -11 -10 -10 -9 --------- Run | Scr Mat Min Mat Distress Signals 3 | . 3 . . Communications Jammed . | . . . . Distress Signals . | . . . . Times Spotted 20 | . 12 . 8 Peak Tracking Total 6 | . 6 . 5 Tactical Retreats . | . . . . Traps | -11 -10 -10 -9 ------- Run | Scr Mat Min Mat Traps Triggered . | . . . . Indirectly . | . . . . Trap Hack Attempts . | . . . . Triggered . | . . . . Disarmed . | . . . . Reprogrammed . | . . . . Reused . | . . . . Traps Extracted . | . . . . Installed . | . . . . Triggered . | . . . . Machines | -11 -10 -10 -9 ---------- Run | Scr Mat Min Mat Machines Disabled . | . . . . Max in Single Turn . | . . . . Machines Sabotaged . | . . . . Garrisons Compromised . | . . . . Overloaded Fab Kills . | . . . . Fab Network Shutdowns . | . . . . Hacking | -11 -10 -10 -9 --------- Run | Scr Mat Min Mat Machines Accessed . | . . . . Terminals . | . . . . Fabricators . | . . . . Repair Stations . | . . . . Recycling Units . | . . . . Scanalyzers . | . . . . Garrison Access . | . . . . Total Hacks . | . . . . Successful . | . . . . Failed . | . . . . Catastrophic . | . . . . Database Lockouts . | . . . . Manual . | . . . . Terminals . | . . . . Fabricators . | . . . . Repair Stations . | . . . . Recycling Units . | . . . . Scanalyzers . | . . . . Garrison Access . | . . . . Terminal Hacks . | . . . . Fabricator Hacks . | . . . . Repair Station Hacks . | . . . . Recycling Unit Hacks . | . . . . Scanalyzer . | . . . . Garrison Access Hacks . | . . . . Unauthorized Hacks . | . . . . Terminals . | . . . . Fabricators . | . . . . Repair Stations . | . . . . Recycling Units . | . . . . Scanalyzers . | . . . . Garrison Access . | . . . . Data Cores Recovered . | . . . . Used . | . . . . Hacking Detections . | . . . . Full Trace Events . | . . . . Feedback Events . | . . . . Feedback Blocked . | . . . . Robot Schematics Acquired . | . . . . Robots Built . | . . . . Matter . | . . . . Time . | . . . . Total Robot Build Rating . | . . . . Part Schematics Acquired . | . . . . Parts Built . | . . . . Matter . | . . . . Time . | . . . . Total Part Build Rating . | . . . . Parts Repaired . | . . . . Time . | . . . . Parts Recycled . | . . . . Recycled Matter . | . . . . Retrieved Matter . | . . . . Retrieved Components . | . . . . Parts Scanalyzed . | . . . . Part Schematics Acquired . | . . . . Parts Damaged . | . . . . Bothacking | -11 -10 -10 -9 ------------ Run | Scr Mat Min Mat Used RIF Installer . | . . . . Robots Hacked . | . . . . Non-combat . | . . . . Combat . | . . . . Robot Hacks Applied . | . . . . Relay Couplers Released . | . . . . Robots Rewired . | . . . . Allies Hacked . | . . . . Hacks Repelled . | . . . . Allies | -11 -10 -10 -9 -------- Run | Scr Mat Min Mat Total Allies . | . . . . Largest Group . | . . . . Highest-Rated Group . | . . . . Highest-Rated Ally . | . . . . Total Orders . | . . . . Ally Attacks . | . . . . Total Damage . | . . . . Kills . | . . . . Allies Corrupted . | . . . . Allies Melted . | . . . . Intel | -11 -10 -10 -9 ------- Run | Scr Mat Min Mat Robot Analysis Total . | . . . . Derelict Logs Recovered 1 | . . 1 . Drone Launches . | . . . . Drone Recoveries . | . . . . Exploration | -11 -10 -10 -9 ------------- Run | Scr Mat Min Mat Turns Passed 712 | 57 186 246 223 Spaces Moved 485 | 53 99 206 127 Core 37 | 10 5 . 22 Treads . | . . . . Legs 342 | . 31 206 105 Wheels 106 | 43 63 . . Hover . | . . . . Flight . | . . . . Fastest Speed 50 | 50 90 120 120 Average Speed 114 | 82 101 120 128 Slowest Speed 150 | 90 150 120 150 Overloaded Moves . | . . . . Propulsion Burnouts . | . . . . Robots Hopped . | . . . . Cave-ins Triggered . | . . . . Exploration Rate (%) 19 | 3 23 42 8 Regions Visited 3 Branch Regions 1 Pre-discovered Areas 1 | . . 1 . Known Exits Taken . | . . . . Unknown Exits Taken 3 | 1 1 1 . Scrap Searched . | . . . . Spaces Dug . | . . . . Terrain Destroyed 1 | . . . 1 Melee . | . . . . Projectile 1 | . . . 1 AOE . | . . . . Terrain Rammed . | . . . . Walls Destroyed . | . . . . Machines Disabled . | . . . . Actions | -11 -10 -10 -9 --------- Run | Scr Mat Min Mat Total 572 | 68 140 205 159 Wait . | . . . . Move 482 | 52 98 205 127 Hop . | . . . . Pick Up 22 | 9 7 . 6 Fast Attach . | . . . . Attach 20 | 6 7 . 7 Detach . | . . . . Swap . | . . . . Drop 1 | 1 . . . Fire 45 | . 27 . 18 Melee . | . . . . Ram 2 | . 1 . 1 Kick . | . . . . Crush . | . . . . Escape Stasis . | . . . . Rewire . | . . . . Trap . | . . . . Miscellaneous . | . . . . Route ------- -11/Scrapyard -10/Materials -10/Mines -9/Materials (discovered 1 exit: Min) History --------- Turn | Location | Event 20 | -11/Scrapyard | Discovered new exit (range 16) 58 | -11/Scrapyard | Entered Materials 158 | -10/Materials | Discovered new exit (range 14) 171 | -10/Materials | Core integrity fell below 50% 214 | -10/Materials | Lost 7 parts (2p2n3w) 244 | -10/Materials | Entered Mines 270 | -10/Mines | Learned location of 1 exit from Materials 374 | -10/Mines | Learned location of Storage (-7) 483 | -10/Mines | Discovered new exit (range 5) 490 | -10/Mines | Entered Materials 490 | -9/Materials | Evolved 2 slots: Utility x2 491 | -9/Materials | Identified exit to Mines 498 | -9/Materials | Build established: Scavenger-Mutant 678 | -9/Materials | Core integrity fell below 50% 698 | -9/Materials | Lost 7 parts (1p2n4w) 706 | -9/Materials | Core integrity fell below 20% 713 | -9/Materials | Destroyed by Y-45 Defender with Heavy Assault Rifle Last Messages --------------- 00577_ S-10 Pest destroyed. 00579_ Acquired 18 matter. 00582_ ALERT: Hostiles spotted, dispatching reinforcements to Terminal M008. 00583_ Acquired Lgt. Ion Engine. 00585_ Acquired 13 matter. 00588_ Acquired 6 matter. 00595_ Acquired Lgt. Ion Engine. 00626_ Lgt. Assault Rifle destroyed. 00636_ Aluminum Leg destroyed. 00644_ K-01 Serf collects debris. 00660_ Lgt. Ion Engine destroyed. 00662_ Lgt. Assault Rifle destroyed. 00665_ Mining Laser destroyed. 00665_ Aluminum Leg destroyed. 00667_ Mining Laser destroyed. 00672_ Slammed into L-31 Rogue. 00703_ Acquired Hpw. Shotgun. 00709_ Destroyed Melee Analysis Suite. 00712_ G-34 Mercenary destroyed. Map ----- +----------------------------------------------------+ | ?????????????????????????????????????????????????? | | ?????????????????????????????????????????????????? | | ?????????????????????????????????????????????????? | | ?????????????????????????????????????????????????? | | ?????????????????????????????????????????????????? | | ?????????????????????????????????????????????????? | | ?????????????????????????????????????????????????? | | ?????????????????????????????????????????????????? | | ?????????????????????????????????????????????????? | | ????? ?????????????????????????????????????????? | | ????? ?????????????????????????????????????????? | | ????? ?????????????????????????????????????????? | | ????# #????????????????????????????????????????? | | ????# #????????????????????????????????????????? | | ????# #????????????????????????????????????????? | | ????# #????????????????????????????????????>???? | | ????# #????????????????????????????????????????? | | ????# #????????????????????????????????????????? | | ????# ###??????????????????????????????????????? | | ????# ??????????????????????????????????????? | | ????+ ???????????????????????????????????????? | | ????# ????????????????????????????????????????? | | ????# #????????????????????????????????????????? | | ????# ########???????#####?????????????????????? | | ????# # #???????# [[#?????????????????????? | | ????# # #???????# @%#?????????????????????? | | ????# #""" #???????# !l#?????????????????????? | | ????# #""" #???#####Yg!#?????????????????????? | | ????# #""" ##### !!#?????????????????????? | | ????# + + a!!#?????????????????????? | | ????# ####"+###### #####?????????????????????? | | ????# #??## #????## ??????????????????????? | | ????# ##### ####### ???????????????????? | | ????# / T # ????????????????? | | ????# # # ## ????????????????? | | ????# #? # #???##????????????????? | | ????# ########?? # +?????????????????????? | | ????# #???????????+ #?????????????????????? | | ????# ######??????# #?????????????????????? | | ????# # #??????# ## #?????????????????????? | | ????# # #??????#+?? #?????????????????????? | | ????# #% #?????????? +?????????????????????? | | ????# #=== #??????????####?????????????????????? | | ????# + #???????????????????????????????????? | | ????# #= #???????????????????????????????????? | | ????# # =/ #???????????????????????????????????? | | ????# # #???????????????????????????????????? | | ????# # #???????????????????????????????????? | | ????# ######???????????????????????????????????? | | ????# #????????????????????????????????????????? | +----------------------------------------------------+ Best States ------------- Heat Dissipation 28 Energy Generation 10 Energy Capacity 250 Matter Stores 300 Matter Capacity 300 Sight Range 16 Terrain Scan Density 10 Evasion (%) 50 Item Schematics ----------------- None Robot Schematics ------------------ None Fabricated ------------ Nothing Alien Tech Used ----------------- None Achievements -------------- None Challenges ------------ None Game ------ Seed HypercooledAlphaShockpuncher Manual? 0 Play Time 00:09:53 Cumulative 5.3 hours Start 2021.02.22 @ 12:00:50 End 2021.02.22 @ 12:08:25 Sessions 1 Manual Loads 0 Difficulty Rogue Special Mode None Game No. 16 Rogue 16 Adventurer 0 Explorer 0 Win Type - Total 0 Types 0/0/0/0/0/0/0/0/0 Lore% 3 Gallery% 11 Achievement% 8 Wizard Run 0 Options --------- ASCII 0 Keyboard 0 Movement Arrows Keybinds 0 Fullscreen 2 Font 18/CogWide Map View 76x50 Tactical HUD 1 Map Filters NONE Filters NONE Steam 1 RUN: e27aa153-4769-4d76-b6a8-89dd628a67c7